fUSD/lending_fUSD_20240927
["ID","MTS","AMOUNT","RATE_DAILY","PERIOD"]
[339310806,1727445052704,-903.32,0.00011882,2]
[339310807,1727445052716,-903.32,0.00011882,2]
[339310808,1727445052727,-500.0,0.00011882,2]
[339310809,1727445052739,-500.0,0.00011882,2]
[339310810,1727445052749,-500.0,0.00011882,2]
[339310811,1727445052759,-500.0,0.00011882,2]
[339310812,1727445052770,-500.0,0.00011882,2]
[339310813,1727445052782,-500.0,0.00011882,2]
[339310814,1727445052792,-500.0,0.00011882,2]
[339310815,1727445052804,-500.0,0.00011882,2]
[339310816,1727445052816,-500.0,0.00011882,2]
[339310817,1727445052828,-500.0,0.00011882,2]
[339310818,1727445052839,-500.0,0.00011882,2]
[339310819,1727445052851,-757.63,0.00011882,2]
[339310820,1727445052864,-757.63,0.00011882,2]
[339310821,1727445052876,-500.0,0.00011882,2]
[339310822,1727445052889,-757.63,0.00011882,2]
[339310823,1727445052901,-500.0,0.00011882,2]
[339310824,1727445052912,-757.63,0.00011882,2]
[339310825,1727445052922,-500.0,0.00011882,2]
[339310826,1727445052932,-757.63,0.00011882,2]
[339310827,1727445052942,-500.0,0.00011882,2]
[339310828,1727445052953,-757.63,0.00011882,2]
[339310829,1727445052964,-500.0,0.00011882,2]
[339310830,1727445052977,-500.0,0.00011882,2]
[339310831,1727445052989,-500.0,0.00011882,2]
[339310832,1727445053001,-500.0,0.00011882,2]
[339310833,1727445053011,-500.0,0.00011882,2]
[339310834,1727445053022,-500.0,0.00011882,2]
[339310835,1727445053035,-500.0,0.00011882,2]
[339310836,1727445053046,-500.0,0.00011882,2]
[339310837,1727445053057,-500.0,0.00011882,2]
[339310838,1727445053070,-500.0,0.00011882,2]
[339310839,1727445053081,-500.0,0.00011882,2]
[339310840,1727445053092,-500.0,0.00011882,2]
[339310841,1727445053102,-527.00612278,0.00011882,2]
[339310842,1727445053117,-586.99,0.00011882,2]
[339310843,1727445053127,-586.99,0.00011882,2]
[339310844,1727445053139,-586.99,0.00011882,2]
[339310845,1727445053150,-586.99,0.00011882,2]
[339310846,1727445053161,-586.99,0.00011882,2]
[339310847,1727445053171,-586.99,0.00011882,2]
[339310848,1727445053182,-500.0,0.00011882,2]
[339310849,1727445053193,-500.0,0.00011882,2]
[339310850,1727445053204,-500.0,0.00011882,2]
[339310851,1727445053216,-537.8041193,0.00011882,2]
[339310852,1727445053227,-942.71,0.00011882,2]
[339310853,1727445053239,-942.71,0.00011882,2]
[339310854,1727445053249,-942.71,0.00011882,2]
[339310855,1727445053260,-942.71,0.00011882,2]
[339310856,1727445053272,-942.71,0.00011882,2]
[339310857,1727445053283,-942.71,0.00011882,2]
[339310858,1727445053294,-500.0,0.00011882,2]
[339310859,1727445053306,-500.0,0.00011882,2]
[339310860,1727445053317,-500.0,0.00011882,2]
[339310861,1727445053328,-500.0,0.00011882,2]
[339310862,1727445053340,-500.0,0.00011882,2]
[339310863,1727445053351,-500.0,0.00011882,2]
[339310864,1727445053361,-500.0,0.00011882,2]
[339310865,1727445053372,-500.0,0.00011882,2]
[339310866,1727445053385,-500.0,0.00011882,2]
[339310867,1727445053396,-500.0,0.00011882,2]
[339310868,1727445053407,-500.0,0.00011882,2]
[339310869,1727445053418,-500.0,0.00011882,2]
[339310870,1727445053430,-620.12,0.00011882,2]
[339310871,1727445053442,-620.12,0.00011882,2]
[339310872,1727445053453,-620.12,0.00011882,2]
[339310873,1727445053463,-620.12,0.00011882,2]
[339310874,1727445053474,-620.12,0.00011882,2]
[339310875,1727445053485,-620.12,0.00011882,2]
[339310876,1727445053496,-500.0,0.00011882,2]
[339310877,1727445053508,-500.0,0.00011882,2]
[339310878,1727445053519,-500.0,0.00011882,2]
[339310879,1727445053529,-500.0,0.00011882,2]
[339310880,1727445053540,-500.0,0.00011882,2]
[339310881,1727445053550,-500.0,0.00011882,2]
[339310882,1727445053561,-750.47,0.00011882,2]
[339310883,1727445053572,-750.47,0.00011882,2]
[339310884,1727445053583,-750.47,0.00011882,2]
[339310885,1727445053594,-750.47,0.00011882,2]
[339310886,1727445053605,-750.47,0.00011882,2]
[339310887,1727445053619,-750.47,0.00011882,2]
[339310888,1727445053630,-1234.38,0.00011882,2]
[339310889,1727445053641,-1234.38,0.00011882,2]
[339310890,1727445053652,-1234.38,0.00011882,2]
[339310891,1727445053663,-1234.38,0.00011882,2]
[339310892,1727445053674,-1234.38,0.00011882,2]
[339310893,1727445053685,-1234.38,0.00011882,2]
[339310894,1727445053696,-500.0,0.00011882,2]
[339310895,1727445053708,-500.0,0.00011882,2]
[339310896,1727445053719,-500.0,0.00011882,2]
[339310897,1727445053730,-500.0,0.00011882,2]
[339310898,1727445053741,-588.85353225,0.00011882,2]
[339310899,1727445053751,-500.0,0.00011882,2]
[339310900,1727445053762,-500.0,0.00011882,2]
[339310901,1727445053772,-500.0,0.00011882,2]
[339310902,1727445053783,-500.0,0.00011882,2]
[339310903,1727445053794,-500.0,0.00011882,2]
[339310904,1727445053805,-500.0,0.00011882,2]
[339310905,1727445053816,-1113.8,0.00011882,2]
[339310906,1727445053826,-1113.8,0.00011882,2]
[339310907,1727445053837,-1113.8,0.00011882,2]
[339310908,1727445053849,-1113.8,0.00011882,2]
[339310909,1727445053859,-1113.8,0.00011882,2]
[339310910,1727445053870,-1113.8,0.00011882,2]
[339310911,1727445053881,-500.0,0.00011882,2]
[339310912,1727445053892,-500.0,0.00011882,2]
[339310913,1727445053903,-500.0,0.00011882,2]
[339310914,1727445053915,-500.0,0.00011882,2]
[339310915,1727445053925,-500.0,0.00011882,2]
[339310916,1727445053936,-500.0,0.00011882,2]
[339310917,1727445053947,-718.49,0.00011882,2]
[339310918,1727445053958,-718.49,0.00011882,2]
[339310919,1727445053969,-718.49,0.00011882,2]
[339310920,1727445053981,-718.49,0.00011882,2]
[339310921,1727445053991,-718.49,0.00011882,2]
[339310922,1727445054002,-718.49,0.00011882,2]
[339310923,1727445054013,-500.0,0.00011882,2]
[339310924,1727445054023,-500.0,0.00011882,2]
[339310925,1727445054034,-500.0,0.00011882,2]
[339310926,1727445054044,-223.42361771,0.00011882,2]
[339310927,1727445054055,-946.33,0.00011882,2]
[339310928,1727445054066,-946.33,0.00011882,2]
[339310929,1727445054077,-946.33,0.00011882,2]
[339310930,1727445054088,-946.33,0.00011882,2]
[339310931,1727445054099,-946.33,0.00011882,2]
[339310932,1727445054112,-704.1,0.00011882,2]
[339310933,1727445054123,-704.1,0.00011882,2]
[339310934,1727445054135,-837.22,0.00011882,2]
[339310935,1727445054145,-704.1,0.00011882,2]
[339310936,1727445054157,-837.22,0.00011882,2]
[339310937,1727445054168,-704.1,0.00011882,2]
[339310938,1727445054179,-837.22,0.00011882,2]
[339310939,1727445054191,-837.22,0.00011882,2]
[339310940,1727445054202,-704.1,0.00011882,2]
[339310941,1727445054213,-704.1,0.00011882,2]
[339310942,1727445054223,-837.22,0.00011882,2]
[339310943,1727445054234,-837.22,0.00011882,2]
[339310944,1727445054244,-518.65,0.00011882,2]
[339310945,1727445054255,-518.65,0.00011882,2]
[339310946,1727445054266,-518.65,0.00011882,2]
[339310947,1727445054277,-518.65,0.00011882,2]
[339310948,1727445054287,-518.65,0.00011882,2]
[339310949,1727445054298,-518.65,0.00011882,2]
[339310950,1727445054308,-747.38,0.00011882,2]
[339310951,1727445054320,-747.38,0.00011882,2]
[339310952,1727445054330,-747.38,0.00011882,2]
[339310953,1727445054341,-747.38,0.00011882,2]
[339310954,1727445054351,-747.38,0.00011882,2]
[339310955,1727445054361,-675.61,0.00011882,2]
[339310956,1727445054371,-675.61,0.00011882,2]
[339310957,1727445054383,-675.61,0.00011882,2]
[339310958,1727445054394,-675.61,0.00011882,2]
[339310959,1727445054404,-675.61,0.00011882,2]
[339310960,1727445054414,-675.61,0.00011882,2]
[339310961,1727445054425,-500.0,0.00011882,2]
[339310962,1727445054435,-500.0,0.00011882,2]
[339310963,1727445054445,-500.0,0.00011882,2]
[339310964,1727445054456,-500.0,0.00011882,2]
[339310965,1727445054466,-500.0,0.00011882,2]
[339310966,1727445054476,-500.0,0.00011882,2]
[339310967,1727445054487,-500.0,0.00011882,2]
[339310968,1727445054496,-500.0,0.00011882,2]
[339310969,1727445054507,-351.56805527,0.00011882,2]
[339310970,1727445054518,-500.0,0.00011882,2]
[339310971,1727445054529,-1504.08,0.00011882,2]
[339310972,1727445054539,-1504.08,0.00011882,2]
[339310973,1727445054550,-1504.08,0.00011882,2]
[339310974,1727445054560,-1504.08,0.00011882,2]
[339310975,1727445054571,-1504.08,0.00011882,2]
[339310976,1727445054581,-1504.08,0.00011882,2]
[339310977,1727445054592,-500.0,0.00011882,2]
[339310978,1727445054602,-1266.14,0.00011882,2]
[339310979,1727445054612,-1266.14,0.00011882,2]
[339310980,1727445054623,-1266.14,0.00011882,2]
[339310981,1727445054635,-500.0,0.00011882,2]
[339310982,1727445054649,-1266.14,0.00011882,2]
[339310983,1727445054659,-500.0,0.00011882,2]
[339310984,1727445054670,-1266.14,0.00011882,2]
[339310985,1727445054681,-500.0,0.00011882,2]
[339310986,1727445054692,-1266.14,0.00011882,2]
[339310987,1727445054703,-500.0,0.00011882,2]
[339310988,1727445054713,-500.0,0.00011882,2]
[339310989,1727445054724,-500.0,0.00011882,2]
[339310990,1727445054735,-500.0,0.00011882,2]
[339310991,1727445054745,-266.06940947,0.00011882,2]
[339310992,1727445054756,-500.0,0.00011882,2]
[339310993,1727445054767,-189.69768539,0.00011882,2]
[339310994,1727445054778,-500.0,0.00011882,2]
[339310995,1727445054789,-500.0,0.00011882,2]
[339310996,1727445054799,-500.0,0.00011882,2]
[339310997,1727445054810,-500.0,0.00011882,2]
[339310998,1727445054821,-1209.65,0.00011882,2]
[339310999,1727445054832,-631.42991281,0.00011882,2]
[339311000,1727445054843,-500.0,0.00011882,2]
[339311001,1727445054853,-1209.65,0.00011882,2]
[339311002,1727445054863,-500.0,0.00011882,2]
[339311003,1727445054874,-1209.65,0.00011882,2]
[339311004,1727445054889,-500.0,0.00011882,2]
[339311005,1727445054900,-1209.65,0.00011882,2]
[339311006,1727445054911,-1209.65,0.00011882,2]
[339311007,1727445054921,-592.27,0.00011882,2]
[339311008,1727445054931,-592.27,0.00011882,2]
[339311009,1727445054942,-592.27,0.00011882,2]
[339311010,1727445054952,-592.27,0.00011882,2]
[339311011,1727445054963,-592.27,0.00011882,2]
[339311012,1727445054973,-592.27,0.00011882,2]
[339311013,1727445054984,-500.0,0.00011882,2]
[339311014,1727445054995,-500.0,0.00011882,2]
[339311015,1727445055006,-534.08,0.00011882,2]
[339311016,1727445055016,-500.0,0.00011882,2]
[339311017,1727445055026,-500.0,0.00011882,2]
[339311018,1727445055037,-500.0,0.00011882,2]
[339311019,1727445055047,-500.0,0.00011882,2]
[339311020,1727445055058,-500.0,0.00011882,2]
[339311021,1727445055069,-500.0,0.00011882,2]
[339311022,1727445055080,-668.38,0.00011882,2]
[339311023,1727445055090,-668.38,0.00011882,2]
[339311024,1727445055101,-500.0,0.00011882,2]
[339311025,1727445055115,-668.38,0.00011882,2]
[339311026,1727445055125,-500.0,0.00011882,2]
[339311027,1727445055137,-668.38,0.00011882,2]
[339311028,1727445055149,-500.0,0.00011882,2]
[339311029,1727445055160,-514.93,0.00011882,2]
[339311030,1727445055170,-500.0,0.00011882,2]
[339311031,1727445055180,-668.38,0.00011882,2]
[339311032,1727445055191,-514.93,0.00011882,2]
[339311033,1727445055202,-500.0,0.00011882,2]
[339311034,1727445055212,-514.93,0.00011882,2]
[339311035,1727445055223,-1396.42,0.00011882,2]
[339311036,1727445055233,-500.0,0.00011882,2]
[339311037,1727445055243,-514.93,0.00011882,2]
[339311038,1727445055254,-1396.42,0.00011882,2]
[339311039,1727445055265,-514.93,0.00011882,2]
[339311040,1727445055275,-1396.42,0.00011882,2]
[339311041,1727445055286,-514.93,0.00011882,2]
[339311042,1727445055296,-1396.42,0.00011882,2]
[339311043,1727445055307,-1396.42,0.00011882,2]
[339311044,1727445055317,-1396.42,0.00011882,2]
[339311045,1727445055327,-500.0,0.00011882,2]
[339311046,1727445055338,-500.0,0.00011882,2]
[339311047,1727445055348,-500.0,0.00011882,2]
[339311048,1727445055359,-500.0,0.00011882,2]
[339311049,1727445055369,-500.0,0.00011882,2]
[339311050,1727445055383,-500.0,0.00011882,2]
[339311051,1727445055393,-529.62,0.00011882,2]
[339311052,1727445055404,-529.62,0.00011882,2]
[339311053,1727445055414,-529.62,0.00011882,2]
[339311054,1727445055425,-529.62,0.00011882,2]
[339311055,1727445055435,-529.62,0.00011882,2]
[339311056,1727445055445,-529.62,0.00011882,2]
[339311057,1727445055456,-682.8,0.00011882,2]
[339311058,1727445055467,-500.0,0.00011882,2]
[339311059,1727445055478,-682.8,0.00011882,2]
[339311060,1727445055488,-682.8,0.00011882,2]
[339311061,1727445055499,-682.8,0.00011882,2]
[339311062,1727445055509,-682.8,0.00011882,2]
[339311063,1727445055520,-682.8,0.00011882,2]
[339311064,1727445055531,-500.0,0.00011882,2]
[339311065,1727445055541,-344.62276832,0.00011882,2]
[339311066,1727445055551,-33.91076664,0.00011882,2]
[339311067,1727445056447,-466.08923336,0.00011882,2]
[339311068,1727445056457,-500.0,0.00011882,2]
[339311069,1727445056467,-500.0,0.00011882,2]
[339311070,1727445056476,-500.0,0.00011882,2]
[339311071,1727445056487,-500.0,0.00011882,2]
[339311072,1727445056497,-115.17222054,0.00011882,2]
[339311073,1727445056509,-384.82777946,0.00011882,2]
[339311074,1727445056518,-500.0,0.00011882,2]
[339311075,1727445056528,-500.0,0.00011882,2]
[339311076,1727445056537,-500.0,0.00011882,2]
[339311077,1727445056547,-500.0,0.00011882,2]
[339311078,1727445056556,-500.0,0.00011882,2]
[339311079,1727445056565,-500.0,0.00011882,2]
[339311080,1727445056574,-500.0,0.00011882,2]
[339311081,1727445056583,-500.0,0.00011882,2]
[339311082,1727445056592,-500.0,0.00011882,2]
[339311083,1727445056602,-500.0,0.00011882,2]
[339311084,1727445056612,-500.0,0.00011882,2]
[339311085,1727445056621,-735.31,0.00011882,2]
[339311086,1727445056631,-735.31,0.00011882,2]
[339311087,1727445056640,-735.31,0.00011882,2]
[339311088,1727445056649,-735.31,0.00011882,2]
[339311089,1727445056658,-735.31,0.00011882,2]
[339311090,1727445056667,-735.31,0.00011882,2]
[339311091,1727445056677,-500.0,0.00011882,2]
[339311092,1727445056687,-500.0,0.00011882,2]
[339311093,1727445056698,-500.0,0.00011882,2]
[339311094,1727445056708,-500.0,0.00011882,2]
[339311095,1727445056717,-500.0,0.00011882,2]
[339311096,1727445056727,-500.0,0.00011882,2]
[339311097,1727445056736,-500.0,0.00011882,2]
[339311098,1727445056746,-500.0,0.00011882,2]
[339311099,1727445056756,-500.0,0.00011882,2]
[339311100,1727445056767,-500.0,0.00011882,2]
[339311101,1727445056780,-500.0,0.00011882,2]
[339311102,1727445056790,-628.61,0.00011882,2]
[339311103,1727445056802,-628.61,0.00011882,2]
[339311104,1727445056812,-628.61,0.00011882,2]
[339311105,1727445056822,-616.42111766,0.00011882,2]
[339311106,1727445056839,-12.18888234,0.00011882,2]
[339311107,1727445056849,-439.20622013,0.00011882,2]
[339311108,1727445056859,-628.61,0.00011882,2]
[339311109,1727445056869,-628.61,0.00011882,2]
[339311110,1727445056878,-500.0,0.00011882,2]
[339311111,1727445056889,-500.0,0.00011882,2]
[339311112,1727445056898,-500.0,0.00011882,2]
[339311113,1727445056908,-500.0,0.00011882,2]
[339311114,1727445056917,-859.38489757,0.00011882,2]
[339311115,1727445057302,-340.5,0.00011267,2]
[339311116,1727445057313,-500.0,0.0001188,2]
[339311117,1727445057323,-500.0,0.0001188,2]
[339311118,1727445057332,-298.707935,0.0001188,2]
[339311119,1727445057392,-201.292065,0.0001188,2]
[339311120,1727445057402,-500.0,0.00011881,2]
[339311121,1727445057411,-763.29,0.00011881,2]
[339311122,1727445057421,-500.0,0.00011881,2]
[339311123,1727445057430,-500.0,0.00011881,2]
[339311124,1727445057440,-500.0,0.00011881,2]
[339311125,1727445057450,-763.29,0.00011881,2]
[339311126,1727445057459,-500.0,0.00011881,2]
[339311127,1727445057469,-500.0,0.00011881,2]
[339311128,1727445057478,-763.29,0.00011881,2]
[339311129,1727445057488,-422.5,0.00011881,2]
[339311130,1727445057497,-763.29,0.00011881,2]
[339311131,1727445057507,-270.8,0.00011881,2]
[339311132,1727445057517,-500.0,0.00011881,2]
[339311133,1727445057527,-500.00085494,0.00011881,2]
[339311134,1727445057536,-250.58937041,0.00011881,2]
[339311135,1727445057546,-117.07510243,0.00011882,2]
[339311136,1727445057555,-976.46,0.00011882,2]
[339311137,1727445057565,-976.46,0.00011882,2]
[339311138,1727445057575,-976.46,0.00011882,2]
[339311139,1727445057584,-976.46,0.00011882,2]
[339311140,1727445057594,-976.46,0.00011882,2]
[339311141,1727445057603,-32.28260721,0.00011882,2]
[339311142,1727445065117,200.0,0.00010773,2]
[339311143,1727445066172,200.0,0.00011,4]
[339311144,1727445067458,678.4,0.00010959,2]
[339311145,1727445067840,200.0,0.00027397,60]
[339311146,1727445068196,200.0,0.00030137,60]
[339311147,1727445068301,500.0,0.000111,4]
[339311148,1727445068567,200.0,0.00032877,60]
[339311149,1727445068763,150.01,8.729e-05,2]
[339311150,1727445081588,1028.81810643,0.00032876,30]
[339311151,1727445124023,800.0,0.00032877,120]
[339311152,1727445129698,161.54,0.00010866,2]
[339311153,1727445130033,4524.51476489,0.00032603,60]
[339311154,1727445148783,3882.29,0.00010959,2]
[339311155,1727445158161,898.5,0.00010866,2]
[339311156,1727445189484,800.0,0.00032877,120]
[339311157,1727445201989,238.85,0.00010862,2]
[339311158,1727445216158,605.36514017,0.00010862,2]
[339311159,1727445216184,15868.00485983,0.00010862,2]
[339311160,1727445225962,-145302.18273887,0.00030309,31]
[339311161,1727445225986,-5000.0,0.00030309,33]
[339311162,1727445226012,-296.26685836,0.00030309,30]
[339311163,1727445226036,-5718.48574935,0.00030309,30]
[339311164,1727445226060,-413.56262243,0.00030309,30]
[339311165,1727445226083,-5758.45526867,0.00030309,60]
[339311166,1727445226109,-2140.28922254,0.00030309,120]
[339311167,1727445226135,-1000.0,0.00030309,60]
[339311168,1727445226159,-1000.0,0.00030309,30]
[339311169,1727445226182,-1000.0,0.00030309,60]
[339311170,1727445226206,-1000.0,0.00030309,30]
[339311171,1727445226232,-1000.0,0.00030309,120]
[339311172,1727445226258,-1000.0,0.00030309,30]
[339311173,1727445226283,-1000.0,0.00030309,30]
[339311174,1727445226308,-1000.0,0.00030309,30]
[339311175,1727445226333,-1000.0,0.00030309,30]
[339311176,1727445226358,-1000.0,0.00030309,60]
[339311177,1727445226382,-1000.0,0.00030309,60]
[339311178,1727445226406,-1000.0,0.00030309,60]
[339311179,1727445226429,-11000.0,0.00030309,120]
[339311180,1727445226453,-606.69011704,0.00030309,120]
[339311181,1727445226476,-185.0,0.00030309,120]
[339311182,1727445226500,-20332.36252885,0.00030309,120]
[339311183,1727445226525,-200.0,0.00030309,120]
[339311184,1727445226548,-2364.0,0.00030309,120]
[339311185,1727445226571,-570.04706934,0.00030309,120]
[339311186,1727445226595,-5000.0,0.00030309,32]
[339311187,1727445226619,-781.26379313,0.00030309,120]
[339311188,1727445226643,-931.0,0.00030309,30]
[339311189,1727445226667,-959.0,0.00030309,30]
[339311190,1727445226690,-245.25112582,0.00030309,60]
[339311191,1727445226714,-891.9696966,0.00030309,120]
[339311192,1727445226739,-303.88712279,0.00030309,30]
[339311193,1727445226767,-220.0,0.00030309,120]
[339311194,1727445226790,-13000.0,0.00030309,30]
[339311195,1727445226813,-199.24695497,0.00030309,90]
[339311196,1727445226837,-286.9609856,0.00030309,120]
[339311197,1727445226860,-246.40854088,0.00030309,120]
[339311198,1727445226884,-177.06982691,0.00030309,120]
[339311199,1727445226908,-288000.0,0.00030309,30]
[339311200,1727445226932,-2854.0,0.00030309,120]
[339311201,1727445226957,-1968.91142643,0.00030309,30]
[339311202,1727445226984,-227.0,0.00030309,120]
[339311203,1727445227009,-2119.37630485,0.00030309,120]
[339311204,1727445227034,-2461.09457207,0.00030309,120]
[339311205,1727445227058,-5000.0,0.00030309,34]
[339311206,1727445227081,-1394.16049535,0.00030309,30]
[339311207,1727445227105,-3331.09404831,0.00030309,120]
[339311208,1727445227129,-161.7562796,0.00030309,30]
[339311209,1727445227153,-260.03436211,0.00030309,30]
[339311210,1727445227176,-1676.0007,0.00030309,30]
[339311211,1727445227201,-441.0,0.00030309,120]
[339311212,1727445227228,-156.158339,0.00030309,40]
[339311213,1727445227254,-156.158339,0.00030309,40]
[339311214,1727445227530,-194.0,0.00030309,30]
[339311215,1727445227554,-194.0,0.00030309,30]
[339311216,1727445227582,-194.0,0.00030309,30]
[339311217,1727445227608,-200.0,0.00030309,30]
[339311218,1727445227632,-188.0,0.00030309,30]
[339311219,1727445227657,-200.0,0.00030309,30]
[339311220,1727445227682,-188.0,0.00030309,30]
[339311221,1727445227707,-262.0,0.00030309,30]
[339311222,1727445227731,-1000.0,0.00030309,30]
[339311223,1727445227758,-1000.0,0.00030309,30]
[339311224,1727445227783,-1000.0,0.00030309,30]
[339311225,1727445227808,-1000.0,0.00030309,30]
[339311226,1727445227833,-1000.0,0.00030309,30]
[339311227,1727445227858,-1000.0,0.00030309,30]
[339311228,1727445227883,-1000.0,0.00030309,30]
[339311229,1727445227909,-1000.0,0.00030309,30]
[339311230,1727445227938,-1000.0,0.00030309,30]
[339311231,1727445227964,-1000.0,0.00030309,30]
[339311232,1727445227991,-1000.0,0.00030309,30]
[339311233,1727445228016,-1000.0,0.00030309,30]
[339311234,1727445228041,-1000.0,0.00030309,30]
[339311235,1727445228066,-1000.0,0.00030309,30]
[339311236,1727445228091,-1000.0,0.00030309,30]
[339311237,1727445228115,-1000.0,0.00030309,30]
[339311238,1727445228139,-1000.0,0.00030309,30]
[339311239,1727445228164,-1000.0,0.00030309,30]
[339311240,1727445228188,-1000.0,0.00030309,30]
[339311241,1727445228216,-1000.0,0.00030309,30]
[339311242,1727445228241,-1000.0,0.00030309,30]
[339311243,1727445228268,-1000.0,0.00030309,30]
[339311244,1727445228293,-1000.0,0.00030309,30]
[339311245,1727445228319,-1000.0,0.00030309,30]
[339311246,1727445228344,-1000.0,0.00030309,30]
[339311247,1727445228368,-1000.0,0.00030309,30]
[339311248,1727445228392,-1000.0,0.00030309,30]
[339311249,1727445228416,-1000.0,0.00030309,30]
[339311250,1727445228440,-1000.0,0.00030309,30]
[339311251,1727445228465,-1000.0,0.00030309,30]
[339311252,1727445228490,-774.22,0.00030309,120]
[339311253,1727445228516,-774.22,0.00030309,120]
[339311254,1727445228540,-774.22,0.00030309,120]
[339311255,1727445228564,-774.22,0.00030309,120]
[339311256,1727445228588,-774.22,0.00030309,120]
[339311257,1727445228612,-774.22,0.00030309,120]
[339311258,1727445228636,-774.22,0.00030309,120]
[339311259,1727445228660,-774.22,0.00030309,120]
[339311260,1727445228684,-774.22,0.00030309,120]
[339311261,1727445228708,-774.22,0.00030309,120]
[339311262,1727445228732,-774.22,0.00030309,120]
[339311263,1727445228757,-774.22,0.00030309,120]
[339311264,1727445228782,-774.22,0.00030309,120]
[339311265,1727445228806,-774.22,0.00030309,120]
[339311266,1727445228831,-774.22,0.00030309,120]
[339311267,1727445228855,-774.44,0.00030309,120]
[339311268,1727445228879,-250.0,0.00030309,30]
[339311269,1727445228903,-250.0,0.00030309,30]
[339311270,1727445228928,-250.0,0.00030309,30]
[339311271,1727445228952,-250.0,0.00030309,30]
[339311272,1727445228975,-250.0,0.00030309,30]
[339311273,1727445228999,-250.0,0.00030309,30]
[339311274,1727445229025,-250.0,0.00030309,30]
[339311275,1727445229048,-250.0,0.00030309,30]
[339311276,1727445229072,-250.0,0.00030309,30]
[339311277,1727445229095,-250.0,0.00030309,30]
[339311278,1727445229118,-250.0,0.00030309,30]
[339311279,1727445229142,-250.0,0.00030309,30]
[339311280,1727445229165,-238.52373,0.00030309,30]
[339311281,1727445229189,-160.0,0.00030309,30]
[339311282,1727445229216,-150.0,0.00030309,30]
[339311283,1727445229241,-964.03767732,0.00030309,30]
[339311284,1727445229268,-1000.0,0.00030309,30]
[339311285,1727445244624,-500.0,0.00032877,120]
[339311286,1727445244648,-1000.0,0.00032877,120]
[339311287,1727445244675,-2002.0,0.00032877,30]
[339311288,1727445244699,-3000.0,0.00033,30]
[339311289,1727445244723,-161.09982536,0.00033,120]
[339311290,1727445244746,-100000.0,0.00033,120]
[339311291,1727445244776,-576.50268496,0.00033,90]
[339311292,1727445244798,-2681.64206519,0.00033,120]
[339311293,1727445244821,-150.0,0.00033,120]
[339311294,1727445244844,-900.0,0.00033,34]
[339311295,1727445244867,-5000.0,0.00033,120]
[339311296,1727445244891,-3037.16343144,0.00033,120]
[339311297,1727445244914,-6727.49,0.00033151,120]
[339311298,1727445244939,-768.0,0.00033674,30]
[339311299,1727445244963,-151.0,0.00033836,120]
[339311300,1727445244987,-1805.3568663,0.00034,120]
[339311301,1727445245011,-2614.77113309,0.00034,120]
[339311302,1727445245036,-1000.0,0.00034,120]
[339311303,1727445245060,-800.0,0.00034,120]
[339311304,1727445245084,-1000.0,0.00034,120]
[339311305,1727445245111,-900.0,0.00034,35]